bitfinex-derivatives/quotes_SOLF0:USTF0_20250905
["timestamp","ask_amount","ask_price","bid_price","bid_amount"]
[1757074864428,1.30918868,207.4,207.34,0.03286928]
[1757074864725,7.81,207.44,207.34,0.03286928]
[1757074864929,1.30918868,207.41,207.34,0.03286928]
[1757074865527,7.81,207.44,207.36,1.30918868]
[1757074865724,7.81,207.44,207.35,8.0]
[1757074865921,1.30918868,207.43,207.35,8.0]
[1757074866125,1.30918868,207.41,207.35,8.0]
[1757074866834,1.30918868,207.37,207.34,0.03286928]
[1757074867028,9.11918868,207.37,207.34,0.03286928]
[1757074867325,9.11918868,207.37,207.32,8.0]
[1757074867527,9.11918868,207.37,207.33,0.03306925]
[1757074867726,0.03428868,207.37,207.34,8.0]
[1757074869130,0.03428868,207.37,207.33,0.03306925]
[1757074869327,7.84428868,207.37,207.33,0.03306925]
[1757074869531,7.84428868,207.37,207.33,8.03306925]
[1757074869933,0.03428868,207.37,207.33,0.03306925]
[1757074870132,0.03428868,207.37,207.34,8.0]
[1757074871429,0.03428868,207.37,207.33,0.03306925]
[1757074871634,9.15347736,207.37,207.33,0.03306925]
[1757074871835,1.34347736,207.37,207.33,8.03306925]
[1757074872029,9.15347736,207.37,207.33,8.03306925]
[1757074872236,7.81,207.36,207.33,0.03306925]
[1757074872731,1.34347736,207.37,207.33,8.03306925]
[1757074872932,0.03428868,207.37,207.33,8.03306925]
[1757074873438,1.30918868,207.36,207.33,0.03306925]
[1757074874132,9.11918868,207.34,207.33,0.03306925]
[1757074875029,7.81,207.34,207.33,0.03306925]
[1757074875332,9.11918868,207.34,207.33,0.03306925]
[1757074875539,7.81,207.34,207.33,0.03306925]
[1757074876546,9.85864372,207.34,207.25,8.0]
[1757074877231,2.04864372,207.31,207.17,4.3437]
[1757074877437,7.81,207.3,207.18,8.0]
[1757074877738,0.03215648,207.26,207.18,8.0]
[1757074880135,7.86,207.25,207.18,8.0]
[1757074880336,9.90864372,207.25,207.18,8.0]
[1757074880543,9.90864372,207.25,207.16,8.01757711]
[1757074880544,7.86,207.25,207.17,7.81]
[1757074880939,7.86,207.25,207.16,8.01757711]
[1757074881238,2.04864372,207.24,207.16,8.01757711]
[1757074881431,2.04864372,207.21,207.16,8.01757711]
[1757074882138,7.86,207.17,207.16,8.01757711]
[1757074882531,7.86,207.17,207.08,7.81]
[1757074883137,0.03274537,207.15,207.08,7.81]
[1757074883647,7.86,207.14,207.05,8.01757711]
[1757074885144,7.86,207.12,207.05,8.01757711]
[1757074885844,0.03261059,207.11,207.05,8.01757711]
[1757074886043,7.86,207.1,207.05,8.01757711]
[1757074887247,0.03261059,207.11,207.05,8.01757711]
[1757074887544,129.16,207.1,207.05,8.01757711]
[1757074887743,7.86,207.09,207.05,8.01757711]
[1757074888147,129.16,207.1,207.05,8.01757711]
[1757074888348,7.86,207.09,207.05,8.01757711]
[1757074888650,7.86,207.07,207.05,8.01757711]
[1757074888850,129.16,207.07,207.05,8.01757711]
[1757074889152,7.86,207.06,207.05,8.01757711]
[1757074889547,137.0,207.06,207.05,8.01757711]
[1757074889748,137.48,207.06,207.05,8.01757711]
[1757074890252,137.48,207.06,206.98,7.81]
[1757074890550,137.0,207.06,206.98,7.81]
[1757074890949,0.03086868,207.04,206.98,7.81]
[1757074892049,136.8,207.03,206.98,7.81]
[1757074892551,0.03086868,207.04,206.9,7.81]
[1757074892951,128.9,207.05,206.9,7.81]
[1757074893149,0.03291049,206.99,206.9,7.81]
[1757074893855,0.03291049,206.99,206.92,4.3491]
[1757074894149,0.03291049,206.99,206.93,7.81]
[1757074894554,0.03291049,206.99,206.95,7.81]
[1757074895253,0.03291049,206.99,206.91,4.3492]
[1757074895455,0.03291049,206.99,206.92,7.81]
[1757074901157,7.89291049,206.99,206.92,7.81]
[1757074901960,7.89291049,206.99,206.83,7.81]
[1757074902358,7.86,206.99,206.83,7.81]
[1757074902558,0.03573847,206.93,206.83,7.81]
[1757074906360,7.86,206.92,206.83,7.81]
[1757074907761,7.89573847,206.93,206.83,7.81]
[1757074909661,0.03573847,206.93,206.83,7.81]
[1757074909958,0.03573847,206.93,206.82,67.6865]
[1757074910163,0.03573847,206.93,206.85,7.63]
[1757074910363,7.48,207.01,206.87,4.3502]
[1757074910566,0.03633076,206.91,206.88,7.63]
[1757074910760,7.48,207.07,206.88,75.2963]
[1757074910963,10.18,207.07,206.93,7.63]
[1757074911158,7.48,207.07,206.93,7.63]
[1757074911463,7.48,207.07,206.94,4.3487]
[1757074911663,7.48,207.07,206.92,7.63]
[1757074911860,311.26,207.12,206.94,7.63]
[1757074912059,7.48,207.11,206.99,7.63]
[1757074912765,7.48,207.11,207.03,0.03470067]
[1757074917772,70.04,207.16,207.04,7.63]
[1757074918072,7.48,207.15,207.04,7.63]
[1757074918573,7.48,207.15,207.07,0.03207546]
[1757074921664,5.57085465,207.13,207.07,0.03207546]
[1757074921974,7.48,207.12,207.07,0.03207546]
[1757074922173,7.96,207.12,207.07,0.03207546]
[1757074922367,7.51095509,207.12,206.92,7.63]
[1757074922674,7.48,207.12,206.92,7.63]
[1757074923469,5.57085465,207.13,206.92,7.63]
[1757074923470,0.03192902,207.04,206.92,7.63]
[1757074923874,0.03192902,207.04,206.98,7.63]
[1757074924265,8.96,207.14,206.98,7.63]
[1757074924465,0.03252364,207.03,206.92,102.84]
[1757074924665,0.03252364,207.03,206.93,7.63]
[1757074924871,7.48,207.08,206.93,7.63]
[1757074925074,0.03475836,207.0,206.93,7.63]
[1757074925470,0.03475836,207.0,206.95,7.63]
[1757074925866,7.48,207.12,206.98,7.63]
[1757074926467,7.48,207.12,206.99,4.3475]
[1757074926666,7.48,207.12,207.0,7.63]
[1757074927272,7.48,207.12,207.04,0.03400435]
[1757074928278,7.48,207.18,207.05,7.63]
[1757074928479,79.62,207.17,207.05,7.63]
[1757074928673,135.48,207.18,207.05,7.63]
[1757074928874,135.48,207.18,207.09,0.03642468]
[1757074929574,7.48,207.18,207.09,0.03642468]
[1757074929882,7.48,207.23,207.1,7.63]
[1757074930173,7.48,207.23,207.13,7.63]
[1757074930577,7.48,207.23,207.07,118.3226]
[1757074930578,7.48,207.23,207.16,0.03231375]
[1757074930772,7.48,207.23,207.16,7.66231375]
[1757074930978,7.48,207.23,207.16,0.03231375]
[1757074931282,5.35665172,207.24,207.17,7.63]
[1757074934282,7.48,207.29,207.17,7.63]
[1757074934575,71.04459774,207.31,207.17,7.63]
[1757074934982,71.04459774,207.31,207.22,7.63]
[1757074935980,25.48,207.33,207.22,7.63]
[1757074937176,18.0,207.33,207.26,7.63]
[1757074938180,7.61,207.41,207.26,7.63]
[1757074938381,7.61,207.41,207.27,7.95]
[1757074938879,7.61,207.41,207.32,0.03401665]
[1757074939283,7.61,207.41,207.33,7.95]
[1757074940485,7.61,207.41,207.32,0.03401665]
[1757074941882,314.40129974,207.44,207.32,0.03401665]
[1757074941883,7.61,207.39,207.32,0.03401665]
[1757074944185,10.97129974,207.39,207.32,0.03401665]
[1757074944687,10.97129974,207.39,207.23,7.95]
[1757074944881,3.36129974,207.31,207.19,7.95]
[1757074945188,7.61,207.3,207.14,7.95]
[1757074945886,61.56,207.36,207.18,7.95]
[1757074946082,0.03372671,207.24,207.18,7.95]
[1757074946385,7.61,207.35,207.18,7.95]
[1757074946587,0.03054534,207.23,207.18,7.95]
[1757074946884,7.61,207.35,207.18,7.95]
[1757074947079,7.61,207.35,207.2,7.95]
[1757074947485,7.61,207.35,207.24,7.98044242]
[1757074948482,7.61,207.35,207.24,0.03044242]
[1757074949584,7.61,207.35,207.24,7.98044242]
[1757074950681,7.61,207.35,207.24,0.03044242]
[1757074950883,10.97129974,207.35,207.24,0.03044242]
[1757074951381,138.65129974,207.35,207.24,0.03044242]
[1757074953691,10.97129974,207.35,207.24,0.03044242]
[1757074953886,7.61,207.33,207.24,0.03044242]
[1757074954086,3.36129974,207.3,207.24,0.03044242]
[1757074954789,7.61,207.29,207.24,0.03044242]
[1757074956184,3.36129974,207.26,207.09,7.95]
[1757074956386,135.11,207.25,207.09,7.95]
[1757074956586,7.61,207.21,207.09,7.95]
[1757074957492,0.03582949,207.17,207.09,7.95]
[1757074958081,0.03582949,207.17,207.08,3.9784785]
[1757074959395,7.61,207.16,207.08,3.9784785]
[1757074959695,7.61,207.16,207.05,7.95]
[1757074960290,0.03179044,207.13,207.05,7.95]
[1757074961593,7.61,207.12,206.99,7.95]
[1757074962295,0.03555987,207.08,206.99,7.95]
[1757074966301,0.03555987,207.08,207.0,4.3473]
[1757074966503,0.03555987,207.08,207.01,7.95]
[1757074966699,7.61,207.12,207.01,7.95]
[1757074967008,0.03238512,207.07,207.01,7.95]
[1757074968006,7.61,207.06,206.94,11.9284785]
[1757074968600,0.03372499,207.02,206.94,11.9284785]
[1757074970706,0.03372499,207.02,206.95,7.99]
[1757074978212,8.1,207.01,206.86,7.99]
[1757074978612,8.1,207.01,206.87,7.99]
[1757074978813,0.03332775,206.96,206.87,7.99]
[1757074979512,0.03332775,206.96,206.91,7.99]
[1757074980114,0.03332775,206.96,206.9,4.3494]
[1757074980510,0.03332775,206.96,206.89,7.99]
[1757074985414,0.03332775,206.96,206.85,67.675]
[1757074985614,0.03332775,206.96,206.86,7.99]
[1757074986125,0.03332775,206.96,206.89,4.3497]
[1757074986323,0.03332775,206.96,206.9,7.99]
[1757074988322,0.03332775,206.96,206.81,3.9784785]
[1757074988323,18.0,206.95,206.81,3.9784785]
[1757074988627,18.0,206.94,206.85,7.99]
[1757074989025,0.03379751,206.92,206.85,7.99]
[1757074990631,18.0,206.91,206.85,7.99]
[1757074995230,18.0,206.91,206.82,71.06033387]
[1757074995428,18.0,206.91,206.83,7.99]
[1757074995830,18.0,206.91,206.85,7.99]
[1757074998332,18.0,206.91,206.85,12.3405]
[1757074998737,18.0,206.91,206.85,7.99]
[1757074999933,18.0,206.91,206.87,7.98]
[1757075000132,18.0,206.91,206.89,7.98]
[1757075000333,18.0,206.91,206.88,125.6]
[1757075000533,18.0,206.91,206.88,126.08]
[1757075000735,18.0,206.91,206.89,7.98]
[1757075000935,18.0,206.91,206.9,7.98]
[1757075001826,3.0819,206.91,206.9,8.46]
[1757075002033,0.03379751,206.92,206.91,12.3294]
[1757075002635,7.8,207.03,206.93,7.98]
[1757075003038,7.8,207.03,206.87,7.98]
[1757075003234,7.8,207.08,206.87,7.98]
[1757075003432,7.8,207.07,206.82,7.98]
[1757075003636,7.8,207.03,206.83,13.22]
[1757075003833,7.8,207.03,206.92,0.0361995]
[1757075006839,26.4,207.03,206.92,0.0361995]
[1757075007039,7.8,207.03,206.92,0.0361995]
[1757075009639,7.8,207.03,206.92,4.3851995]
[1757075009839,7.8,207.03,206.92,12.3651995]
[1757075012249,7.8,207.03,206.92,8.0161995]
[1757075012642,7.8,207.03,206.92,0.0361995]
[1757075017556,7.8,207.03,206.93,7.98]
[1757075021963,7.8,207.03,206.94,7.98]
[1757075022866,7.8,207.03,206.96,0.03263216]
[1757075025466,7.8,207.07,206.97,7.98]
[1757075026065,7.8,207.07,207.0,0.03060659]
[1757075026664,7.8,207.07,207.0,8.01060659]
[1757075026867,5.35665172,207.09,207.0,8.01060659]
[1757075027464,5.35665172,207.09,207.01,7.98]
[1757075028171,5.35665172,207.09,207.03,4.3467]
[1757075028366,5.35665172,207.09,207.01,7.98]
[1757075028866,5.35665172,207.09,207.02,4.3469]
[1757075029669,5.35665172,207.09,207.01,7.98]
[1757075030570,7.61,207.08,207.01,7.98]
[1757075030772,7.61,207.08,207.0,0.03060659]
[1757075036680,11.09422,207.13,207.03,7.96]
[1757075036874,18.70422,207.13,207.03,7.96]
[1757075037274,18.70422,207.13,207.06,0.03138152]
[1757075043277,18.70422,207.13,207.06,7.99138152]
[1757075043477,11.09422,207.13,207.06,7.99138152]
[1757075043678,11.09422,207.13,207.09,4.3456]
[1757075043880,11.09422,207.13,207.07,2.05195229]
[1757075044075,11.09422,207.13,207.08,7.96]
[1757075044282,11.09422,207.13,207.11,4.345]
[1757075044577,11.09422,207.13,207.12,7.96]
[1757075044783,11.09422,207.13,207.12,8.44]
[1757075046479,2.93422,207.13,207.12,8.44]
[1757075046782,5.35665172,207.21,207.12,0.48]
[1757075047081,5.35665172,207.21,207.13,7.96]
[1757075047471,5.35665172,207.21,207.17,4.3439]
[1757075047883,5.35665172,207.21,207.18,7.96]
[1757075048075,7.61,207.25,207.17,12.3039]
[1757075048481,7.61,207.25,207.18,4.3435]
[1757075048683,7.61,207.25,207.19,0.03214533]
[1757075049181,5.35665172,207.32,207.19,0.03214533]
[1757075049182,5.35665172,207.32,207.19,4.37544533]
[1757075049380,7.61,207.31,207.2,7.96]
[1757075049881,7.61,207.31,207.23,0.03428138]
[1757075053988,7.61,207.31,207.23,7.99428138]
[1757075054990,7.61,207.31,207.23,12.33668138]
[1757075055190,50.5,207.4,207.23,12.33668138]
[1757075055390,7.61,207.39,207.23,7.99428138]
[1757075055687,7.61,207.39,207.23,7.96]
[1757075056083,7.61,207.39,207.29,0.0310129]
[1757075056490,7.61,207.39,207.19,7.96]
[1757075056686,5.56662246,207.36,207.19,7.96]
[1757075056991,7.61,207.3,207.12,7.96]
[1757075057190,7.61,207.3,207.15,7.96]
[1757075057891,7.61,207.3,207.17,7.96]
[1757075059085,0.0335092,207.26,207.17,7.96]
[1757075059895,7.53,207.25,207.12,7.42]
[1757075060194,7.53,207.29,207.12,7.42]
[1757075060584,0.03338966,207.21,207.12,7.42]
[1757075062390,0.03338966,207.21,207.14,4.3444]
[1757075062596,0.03338966,207.21,207.16,67.5748]
[1757075062791,7.53,207.33,207.2,7.42]
[1757075064000,7.53,207.33,207.24,0.03273162]
[1757075065403,7.53,207.33,207.27,1.31089555]
[1757075065794,1.31089555,207.28,207.24,0.03273162]
[1757075065993,0.83977847,207.41,207.24,0.03273162]
[1757075065994,7.53,207.25,207.24,0.03273162]
[1757075066300,7.53,207.25,207.18,7.42]
[1757075066500,1.31089555,207.24,207.22,0.03276455]
[1757075066699,7.53,207.23,207.22,0.03276455]
[1757075066896,7.53,207.23,207.13,7.42]
[1757075067095,1.31089555,207.2,207.13,7.42]
[1757075067303,1.31089555,207.22,207.14,3.9784785]
[1757075067502,7.53,207.23,207.16,0.035651]
[1757075082018,13.64,207.31,207.16,0.035651]
[1757075082313,7.53,207.3,207.15,7.42]
[1757075082612,7.53,207.3,207.21,0.03467588]
[1757075084216,7.53,207.28,207.1,5.04]
[1757075084414,7.56439931,207.28,207.1,5.04]
[1757075084616,7.53,207.28,207.1,5.04]
[1757075085212,7.53,207.28,207.09,11.3984785]
[1757075085413,7.53,207.2,207.09,11.3984785]
[1757075086014,0.03162674,207.17,207.09,11.3984785]
[1757075086315,7.53,207.17,207.09,11.3984785]
[1757075086712,0.03489989,207.15,207.09,11.3984785]
[1757075087412,0.03489989,207.15,207.1,1.31303892]
[1757075087621,0.03489989,207.15,207.1,8.73303892]
[1757075088121,7.82,207.14,207.11,3.9784785]
[1757075088718,0.03489989,207.15,207.11,3.9784785]
[1757075088921,7.82,207.14,207.11,3.9784785]
[1757075089221,0.03489989,207.15,207.11,3.9784785]
[1757075089419,7.82,207.14,207.11,3.9784785]
[1757075089917,0.03489989,207.15,207.11,3.9784785]
[1757075090311,1.31303892,207.13,207.11,3.9784785]
[1757075090514,7.82,207.12,207.11,3.9784785]
[1757075094028,1.31303892,207.14,207.11,3.9784785]
[1757075094422,7.85489989,207.15,207.11,3.9784785]
[1757075095126,7.85489989,207.15,207.08,6.60296127]
[1757075095127,7.85489989,207.15,207.09,7.86]
[1757075095327,7.85489989,207.15,207.1,1.31303892]
[1757075095525,0.03489989,207.15,207.1,1.31303892]
[1757075095730,0.03489989,207.15,207.11,7.86]
[1757075096528,0.03489989,207.15,207.1,1.31303892]
[1757075096736,0.03489989,207.15,207.11,7.86]
[1757075097926,0.03489989,207.15,207.1,1.31303892]
[1757075098133,7.82,207.14,207.08,1.31303892]
[1757075098530,7.82,207.14,207.06,7.86]
[1757075098735,7.82,207.14,207.07,1.31303892]
[1757075099938,7.82,207.14,207.06,7.86]
[1757075100533,7.82,207.14,207.07,1.31303892]
[1757075100936,0.03489989,207.15,207.07,1.31303892]
[1757075101235,0.03489989,207.15,207.09,1.31303892]
[1757075105142,0.03489989,207.15,207.12,7.86]
[1757075105330,0.03489989,207.15,207.14,7.86]
[1757075107232,0.03489989,207.15,207.14,9.17303892]
[1757075108441,0.03489989,207.15,207.14,7.86]
[1757075109535,0.03489989,207.15,207.13,1.31303892]
[1757075109735,0.03489989,207.15,207.11,9.17303892]
[1757075109936,7.85489989,207.15,207.1,3.9784785]
[1757075110132,0.03489989,207.15,207.1,3.9784785]
[1757075110335,0.03489989,207.15,207.12,7.86]
[1757075110536,7.85489989,207.15,207.1,3.9784785]
[1757075110737,7.85489989,207.15,207.1,11.8384785]
[1757075111344,7.85489989,207.15,207.11,7.86]
[1757075112540,0.03489989,207.15,207.1,3.9784785]
[1757075112744,7.82,207.14,207.1,3.9784785]
[1757075113045,0.03489989,207.15,207.1,3.9784785]
[1757075113644,7.85489989,207.15,207.11,7.86]
[1757075115044,0.03489989,207.15,207.1,3.9784785]
[1757075115348,7.82,207.14,207.08,5.29151742]
[1757075115544,7.82,207.14,207.08,3.9784785]
[1757075116440,0.03489989,207.15,207.09,7.86]
[1757075117045,0.03489989,207.15,207.11,7.86]
[1757075117351,0.03489989,207.15,207.1,1.31303892]
[1757075117651,1.34793881,207.15,207.08,3.9784785]
[1757075118954,0.03489989,207.15,207.08,3.9784785]
[1757075119153,1.31303892,207.14,207.08,3.9784785]
[1757075119454,0.03489989,207.15,207.08,3.9784785]
[1757075123256,0.03489989,207.15,207.07,11.8384785]
[1757075123851,0.03489989,207.15,207.08,8.1]
[1757075126060,7.49,207.14,207.08,8.1]
[1757075129260,7.49,207.14,207.07,3.9784785]
[1757075130361,7.49,207.14,207.07,12.0784785]
[1757075133565,7.49,207.14,207.07,8.1]
[1757075136061,0.03489989,207.15,207.07,8.1]
[1757075136765,7.52489989,207.15,207.07,8.1]
[1757075138967,7.52489989,207.15,207.07,12.0784785]
[1757075139164,0.03489989,207.15,207.08,8.1]
[1757075143970,0.03489989,207.15,207.09,3.9784785]
[1757075144165,0.03489989,207.15,207.1,8.1]
[1757075144566,0.03489989,207.15,207.09,3.9784785]
[1757075144969,0.03489989,207.15,207.1,8.1]
[1757075145873,0.03489989,207.15,207.09,12.0784785]
[1757075147074,0.03489989,207.15,207.09,3.9784785]
[1757075147472,0.03489989,207.15,207.1,8.1]
[1757075147673,0.03489989,207.15,207.09,3.9784785]
[1757075148271,0.03489989,207.15,207.1,8.14]
[1757075148477,0.03489989,207.15,207.09,12.1184785]
[1757075148978,0.03489989,207.15,207.1,8.14]
[1757075149575,0.03489989,207.15,207.09,3.9784785]
[1757075150175,0.03489989,207.15,207.1,8.14]
[1757075151078,0.03489989,207.15,207.09,3.9784785]
[1757075151274,0.03489989,207.15,207.1,8.14]
[1757075152080,0.03489989,207.15,207.09,3.9784785]
[1757075152474,0.03489989,207.15,207.1,8.14]
[1757075152871,0.03489989,207.15,207.11,3.9784785]
[1757075153070,0.03489989,207.15,207.12,8.14]
[1757075153981,0.03489989,207.15,207.11,8.3236785]
[1757075154175,0.03489989,207.15,207.12,8.14]
[1757075154974,0.03489989,207.15,207.14,8.14]
[1757075164382,0.03489989,207.15,207.14,123.08]
[1757075164589,7.99,207.26,207.15,8.14]
[1757075164786,5.35665172,207.27,207.18,8.14]
[1757075165791,7.99,207.3,207.21,8.14]
[1757075165992,5.35665172,207.32,207.24,8.14]
[1757075166790,5.35665172,207.32,207.26,0.0340031]
[1757075167888,5.35665172,207.32,207.27,8.14]
[1757075168281,5.35665172,207.32,207.29,8.14]
[1757075169182,5.35665172,207.32,207.28,41.08]
[1757075169387,5.35665172,207.32,207.29,8.14]
[1757075169582,5.35665172,207.32,207.28,41.08]
[1757075169789,5.35665172,207.32,207.29,8.14]
[1757075170183,5.35665172,207.32,207.28,41.08]
[1757075170584,5.35665172,207.32,207.29,8.14]
[1757075170781,5.35665172,207.32,207.28,41.08]
[1757075170986,5.35665172,207.32,207.29,8.14]
[1757075171186,5.35665172,207.32,207.29,10.19237652]
[1757075171384,5.35665172,207.32,207.29,2.05237652]
[1757075171686,5.35665172,207.32,207.31,8.14]
[1757075172083,7.99,207.4,207.31,8.14]
[1757075172793,7.99,207.4,207.33,0.03589681]
[1757075176293,0.8394746,207.48,207.34,8.14]
[1757075176497,7.99,207.47,207.35,2.05237652]
[1757075176892,7.99,207.47,207.39,0.03561271]
[1757075178698,7.99,207.47,207.39,8.17561271]
[1757075181099,7.99,207.47,207.41,2.05237652]
[1757075181295,7.48,207.54,207.42,8.14]
[1757075181501,8.78860492,207.54,207.42,8.14]
[1757075181801,7.48,207.54,207.45,1.30860492]
[1757075181993,8.78860492,207.54,207.46,0.03268809]
[1757075182595,7.48,207.54,207.47,1.30860492]
[1757075183995,7.48,207.54,207.46,0.03268809]
[1757075184196,7.48,207.54,207.47,1.30860492]
[1757075184990,5.35665172,207.56,207.49,8.14]
[1757075185196,7.48,207.55,207.48,1.30860492]
[1757075185696,7.48,207.55,207.49,0.03227451]
[1757075186091,7.48,207.55,207.49,9.48087943]
[1757075186403,7.48,207.55,207.49,0.03227451]
[1757075187004,1.30860492,207.54,207.49,0.03227451]
[1757075187205,7.48,207.53,207.49,0.03227451]
[1757075187394,7.48,207.53,207.45,9.44860492]
[1757075187598,1.30860492,207.54,207.49,0.03395349]
[1757075187801,7.48,207.53,207.49,0.03395349]
[1757075188404,1.30860492,207.54,207.49,0.03395349]
[1757075188602,7.48,207.53,207.49,0.03395349]
[1757075188902,70.5,207.61,207.49,0.03395349]
[1757075189107,7.48,207.55,207.49,0.03395349]
[1757075189298,7.48,207.55,207.47,1.30860492]
[1757075189498,1.30860492,207.56,207.5,0.03692451]
[1757075189897,1.30860492,207.55,207.5,0.03692451]
[1757075190102,7.48,207.56,207.5,0.03692451]
[1757075191501,7.48,207.61,207.53,1.30860492]
[1757075192306,7.48,207.61,207.55,1.34080357]
[1757075193803,7.48,207.65,207.57,1.30860492]
[1757075194407,7.48,207.65,207.59,0.03644403]
[1757075195208,7.48,207.62,207.59,0.03644403]
[1757075195403,1.30860492,207.61,207.59,0.03644403]
[1757075195606,7.48,207.6,207.59,0.03644403]
[1757075200209,0.83858453,207.71,207.59,0.03644403]
[1757075200408,7.48,207.65,207.59,0.03644403]
[1757075201611,7.48,207.63,207.59,0.03644403]
[1757075202009,1.30860492,207.64,207.59,0.03644403]
[1757075202207,7.48,207.63,207.59,0.03644403]
[1757075202512,1.30860492,207.63,207.59,0.03644403]
[1757075202711,7.48,207.62,207.59,0.03644403]
[1757075202911,1.30860492,207.63,207.59,0.03644403]
[1757075203113,7.48,207.62,207.59,0.03644403]
[1757075203413,1.30860492,207.63,207.59,0.03644403]
[1757075203816,7.48,207.62,207.59,0.03644403]
[1757075204011,7.48,207.64,207.59,0.03644403]
[1757075204210,7.48,207.6,207.59,0.03644403]
[1757075206212,7.48,207.7,207.59,0.03644403]
[1757075206516,7.48,207.66,207.59,0.03644403]
[1757075206717,8.78860492,207.66,207.59,0.03644403]
[1757075208119,8.02,207.63,207.59,0.03644403]
[1757075208515,1.30860492,207.64,207.59,0.03644403]
[1757075208821,8.02,207.65,207.59,0.03644403]
[1757075210118,1.30860492,207.64,207.59,0.03644403]
[1757075210319,8.02,207.61,207.59,0.03644403]
[1757075210617,1.30860492,207.62,207.59,0.03644403]
[1757075211621,8.02,207.61,207.59,0.03644403]
[1757075212315,1.30860492,207.62,207.59,0.03644403]
[1757075212522,8.02,207.61,207.59,0.03644403]
[1757075212719,1.30860492,207.64,207.59,0.03644403]
[1757075213116,8.02,207.63,207.59,0.03644403]
[1757075213314,8.02,207.63,207.59,7.72644403]
[1757075213512,8.02,207.67,207.59,1.34504895]
[1757075213916,8.02,207.67,207.59,0.03644403]
[1757075214119,1.30860492,207.64,207.59,0.03644403]
[1757075214319,8.02,207.63,207.59,0.03644403]
[1757075214918,1.30860492,207.63,207.59,0.03644403]
[1757075215115,8.02,207.62,207.59,0.03644403]
[1757075215416,1.30860492,207.63,207.59,0.03644403]
[1757075215923,8.02,207.62,207.59,0.03644403]
[1757075216419,1.30860492,207.63,207.59,0.03644403]
[1757075216917,8.02,207.62,207.59,0.03644403]
[1757075217817,1.30860492,207.65,207.59,0.03644403]
[1757075218015,9.32860492,207.6,207.59,0.03644403]
[1757075219226,8.02,207.6,207.59,0.03644403]
[1757075220327,9.32860492,207.6,207.59,0.03644403]
[1757075222028,8.02,207.6,207.59,0.03644403]
[1757075222521,1.30860492,207.63,207.59,0.03644403]
[1757075222727,8.02,207.6,207.59,0.03644403]
[1757075223323,8.02,207.62,207.59,0.03644403]
[1757075223636,1.30860492,207.63,207.59,0.03644403]
[1757075224034,8.02,207.62,207.59,0.03644403]
[1757075224337,1.30860492,207.61,207.59,0.03644403]
[1757075224533,8.02,207.6,207.59,0.03644403]
[1757075227525,1.30860492,207.63,207.59,0.03644403]
[1757075227730,8.02,207.62,207.59,0.03644403]
[1757075227936,1.30860492,207.63,207.59,0.03644403]
[1757075228133,8.02,207.62,207.59,0.03644403]
[1757075228633,1.30860492,207.63,207.59,0.03644403]
[1757075228833,8.02,207.64,207.59,0.03644403]
[1757075229033,1.30860492,207.65,207.59,0.03644403]
[1757075229634,5.35665172,207.69,207.59,0.03644403]
[1757075229834,1.30860492,207.64,207.59,0.03644403]
[1757075230237,8.02,207.65,207.59,0.03644403]
[1757075230634,1.30860492,207.6,207.5,7.69]
[1757075230839,8.02,207.53,207.49,4.01259967]
[1757075231035,1.30860492,207.54,207.49,4.01259967]
[1757075231339,8.02,207.52,207.49,4.01259967]
[1757075231740,8.02,207.5,207.49,4.01259967]
[1757075232238,8.05626153,207.53,207.49,4.01259967]
[1757075232438,0.03626153,207.53,207.49,4.01259967]
[1757075232635,8.02,207.52,207.49,4.01259967]
[1757075232843,14.5,207.5,207.38,10.63635668]